bitfinex/quotes_BTCUSD_20241025
["timestamp","ask_amount","ask_price","bid_price","bid_amount"]
[1729834956165,0.0442289,67856.0,67850.0,0.00460789]
[1729834956377,0.0442289,67856.0,67849.0,0.15050381]
[1729834956378,0.0442289,67856.0,67851.0,0.00460789]
[1729834956607,0.0442289,67856.0,67852.0,0.00460789]
[1729834956833,0.3389709,67856.0,67853.0,0.00460789]
[1729834957051,0.3389709,67856.0,67854.0,0.00460789]
[1729834957271,0.141373,67855.0,67849.0,0.37090568]
[1729834957509,0.141373,67855.0,67850.0,0.004608]
[1729834957510,0.04415954,67854.0,67850.0,0.004608]
[1729834957736,0.1145,67853.0,67851.0,0.004608]
[1729834958235,0.261879,67853.0,67852.0,0.004608]
[1729834958239,0.211379,67853.0,67852.0,0.004608]
[1729834958478,0.216377,67853.0,67852.0,0.004608]
[1729834958731,0.266877,67853.0,67852.0,0.004608]
[1729834959845,0.272877,67853.0,67852.0,0.004608]
[1729834960062,0.31704685,67853.0,67852.0,0.004608]
[1729834960278,0.272877,67853.0,67852.0,0.004608]
[1729834961549,0.04417684,67853.0,67852.0,0.004608]
[1729834961798,0.04417684,67853.0,67846.0,0.147391]
[1729834962012,0.04417684,67853.0,67847.0,0.0046081]
[1729834962239,0.04417684,67853.0,67848.0,0.0046081]
[1729834962447,0.04417684,67853.0,67849.0,0.0046081]
[1729834962659,0.10400372,67855.0,67848.0,0.147387]
[1729834962871,0.147371,67856.0,67848.0,0.147387]
[1729834963526,0.04417719,67855.0,67848.0,0.147387]
[1729834964157,0.19155019,67855.0,67848.0,0.147388]
[1729834964398,0.000824,67853.0,67849.0,0.147385]
[1729834967119,0.005824,67853.0,67849.0,0.147385]
[1729834967331,0.000824,67853.0,67849.0,0.147385]
[1729834967750,0.000824,67853.0,67844.0,0.005]
[1729834967959,0.000824,67853.0,67847.0,0.14739]
[1729834968174,0.000824,67853.0,67849.0,0.147384]
[1729834968384,0.147368,67857.0,67846.0,0.442177]
[1729834968599,0.147368,67857.0,67849.0,0.147384]
[1729834968818,0.005,67860.0,67850.0,0.15050381]
[1729834969023,0.10900372,67858.0,67850.0,0.15050381]
[1729834969237,0.10900372,67858.0,67854.0,0.147374]
[1729834969754,0.10900372,67858.0,67852.0,0.147377]
[1729834970186,0.10900372,67858.0,67850.0,0.15050381]
[1729834970321,0.10900372,67858.0,67852.0,0.147378]
[1729834970529,0.10400372,67858.0,67852.0,0.147378]
[1729834971531,0.10400372,67858.0,67850.0,0.37090568]
[1729834971532,0.10900372,67858.0,67850.0,0.37090568]
[1729834972180,0.10900372,67858.0,67852.0,0.147377]
[1729834972592,0.10900372,67858.0,67850.0,0.37090568]
[1729834973003,0.10900372,67858.0,67852.0,0.147379]
[1729834974083,0.00167,67859.0,67852.0,0.147378]
[1729834974502,0.005,67858.0,67852.0,0.147378]
[1729834974711,0.00667,67859.0,67852.0,0.147378]
[1729834975549,0.00667,67859.0,67850.0,0.37090568]
[1729834975759,0.005,67858.0,67851.0,0.14738]
[1729834975964,0.005825,67858.0,67851.0,0.14738]
[1729834976383,0.000825,67858.0,67851.0,0.14738]
[1729834976586,0.000825,67858.0,67852.0,0.147379]
[1729834977432,0.000825,67858.0,67850.0,0.37090568]
[1729834977644,0.005825,67858.0,67850.0,0.37090568]
[1729834977853,0.000825,67858.0,67852.0,0.147378]
[1729834979337,0.08844573,67853.0,67850.0,0.51828868]
[1729834979575,0.04422286,67852.0,67851.0,0.14738]
[1729834981615,0.04422268,67853.0,67850.0,0.15050381]
[1729834982025,0.04422268,67853.0,67852.0,0.147379]
[1729834982489,0.31060339,67861.0,67852.0,0.147379]
[1729834982490,0.14736,67861.0,67852.0,0.147379]
[1729834982703,0.16324308,67860.0,67852.0,0.147379]
[1729834982928,0.16324308,67859.0,67852.0,0.147379]
[1729834983158,0.442077,67862.0,67852.0,0.147379]
[1729834983377,0.16324218,67861.0,67852.0,0.147379]
[1729834983601,0.16324218,67861.0,67850.0,0.15050381]
[1729834983841,0.31060318,67861.0,67852.0,0.147378]
[1729834984066,0.16324218,67860.0,67850.0,0.15050381]
[1729834984290,0.16324218,67859.0,67851.0,0.294762]
[1729834984516,0.29472,67861.0,67849.0,0.22040187]
[1729834984760,0.147369,67857.0,67849.0,0.36778687]
[1729834985017,0.25137072,67858.0,67850.0,0.147382]
[1729834985225,0.10400372,67858.0,67851.0,0.147381]
[1729834985435,0.10400372,67858.0,67849.0,0.36778687]
[1729834985660,0.10400372,67858.0,67849.0,0.22040187]
[1729834985869,0.10400372,67858.0,67851.0,0.147381]
[1729834988150,0.000824,67857.0,67851.0,0.147381]
[1729834989093,0.000824,67857.0,67852.0,0.147379]
[1729834990253,0.000824,67857.0,67849.0,0.22204987]
[1729834990690,0.000824,67857.0,67849.0,0.36943487]
[1729834990925,0.06633364,67855.0,67849.0,0.22204987]
[1729834991137,0.06633364,67855.0,67849.0,0.36943387]
[1729834991354,0.06633364,67856.0,67850.0,0.147383]
[1729834991813,0.06633364,67852.0,67850.0,0.147383]
[1729834993629,0.06633364,67852.0,67850.0,0.147382]
[1729834997386,0.0663332,67852.0,67850.0,0.147382]
[1729834998215,0.0663332,67852.0,67849.0,0.001648]
[1729834998473,0.04422233,67850.0,67849.0,0.001648]
[1729834998898,0.04422233,67850.0,67849.0,0.149034]
[1729834999317,0.04422233,67851.0,67849.0,0.149034]
[1729834999530,0.04422233,67851.0,67850.0,0.147383]
[1729834999734,0.04422233,67851.0,67849.0,0.001648]
[1729834999937,0.04422233,67851.0,67850.0,0.001648]
[1729835000165,0.04422167,67851.0,67850.0,0.001648]
[1729835000365,0.0663332,67853.0,67850.0,0.001648]
[1729835000771,0.0663332,67852.0,67850.0,0.001648]
[1729835000982,0.04422162,67851.0,67850.0,0.001648]
[1729835001189,0.04422162,67851.0,67850.0,0.149031]
[1729835001598,0.04422149,67851.0,67850.0,0.149031]
[1729835001805,0.04422149,67851.0,67850.0,0.001648]
[1729835002012,0.04422149,67852.0,67850.0,0.149031]
[1729835002229,0.04422084,67851.0,67850.0,0.149031]
[1729835002438,0.04422084,67851.0,67850.0,0.001648]
[1729835002647,0.04422084,67851.0,67850.0,0.149031]
[1729835003969,0.04422084,67851.0,67850.0,0.328031]
[1729835007058,0.06633769,67853.0,67851.0,0.0973]
[1729835009342,0.06633769,67853.0,67851.0,0.24468]
[1729835009575,0.06633769,67853.0,67851.0,0.0973]
[1729835010017,0.06633769,67853.0,67851.0,0.244681]
[1729835010484,0.06633769,67853.0,67851.0,0.0973]
[1729835010717,0.06633769,67853.0,67851.0,0.244681]
[1729835014072,0.06633769,67853.0,67852.0,0.147379]
[1729835014505,0.06633769,67853.0,67851.0,0.0973]
[1729835014731,0.06633769,67853.0,67851.0,0.244681]
[1729835015616,0.06633769,67853.0,67852.0,0.147379]
[1729835016779,0.06633604,67853.0,67852.0,0.147379]
[1729835017003,0.06633604,67853.0,67852.0,0.244679]
[1729835018422,0.06633604,67853.0,67852.0,0.0973]
[1729835018859,0.06633604,67853.0,67852.0,0.177]
[1729835019064,0.06633604,67853.0,67852.0,0.324379]
[1729835019489,0.06633604,67853.0,67852.0,0.177]
[1729835020173,0.06633604,67853.0,67852.0,0.18437244]
[1729835020603,0.06633604,67853.0,67852.0,0.33175144]
[1729835022639,0.06633604,67853.0,67852.0,0.33635921]
[1729835022852,0.06633604,67853.0,67852.0,0.18898021]
[1729835023286,0.06633604,67853.0,67852.0,0.33635921]
[1729835023777,0.06633604,67853.0,67852.0,0.18898021]
[1729835024461,0.06633604,67853.0,67852.0,0.33635921]
[1729835024704,0.06633604,67853.0,67852.0,0.324379]
[1729835024916,0.06633604,67853.0,67852.0,0.33635918]
[1729835025124,0.06633537,67853.0,67852.0,0.33635918]
[1729835035912,0.06633537,67853.0,67852.0,0.33635916]
[1729835036129,0.0663364,67853.0,67852.0,0.33800716]
[1729835039535,0.0663364,67853.0,67852.0,0.326027]
[1729835039766,0.0663364,67853.0,67852.0,0.33800716]
[1729835040694,0.04422402,67855.0,67854.0,0.147375]
[1729835040931,0.04422402,67856.0,67854.0,0.17740775]
[1729835041158,0.04422402,67856.0,67855.0,0.25245316]
[1729835041388,0.04422402,67856.0,67855.0,0.33215316]
[1729835041875,0.000824,67857.0,67855.0,0.33215316]
[1729835041876,0.04504802,67857.0,67856.0,0.24047]
[1729835042093,0.04504802,67857.0,67856.0,0.33215016]
[1729835042557,0.06716004,67857.0,67856.0,0.18478016]
[1729835042808,0.06716004,67857.0,67856.0,0.33215016]
[1729835043715,0.000824,67857.0,67856.0,0.33215016]
[1729835044189,0.06716004,67857.0,67856.0,0.33215016]
[1729835044421,0.06714067,67857.0,67856.0,0.33215016]
[1729835045522,0.000824,67857.0,67856.0,0.33215016]
[1729835049612,0.000824,67857.0,67856.0,0.32754205]
[1729835049845,0.000824,67857.0,67856.0,0.17740753]
[1729835050072,0.000824,67857.0,67856.0,0.18477958]
[1729835051168,0.000824,67857.0,67856.0,0.10507958]
[1729835051380,0.06712937,67857.0,67856.0,0.00460753]
[1729835052031,0.000824,67857.0,67856.0,0.00460753]
[1729835052264,0.16399726,67857.0,67856.0,0.00460753]
[1729835053851,0.1639997,67857.0,67856.0,0.00460753]
[1729835055212,0.06713054,67857.0,67856.0,0.32047753]
[1729835055441,0.000824,67857.0,67856.0,0.32047753]
[1729835056532,0.04502477,67857.0,67856.0,0.32047753]
[1729835057363,0.04502477,67857.0,67856.0,0.31587]
[1729835057521,0.04502477,67857.0,67856.0,0.3204775]
[1729835061537,0.04502477,67857.0,67856.0,0.3289932]
[1729835063505,0.04502061,67857.0,67856.0,0.3289932]
[1729835063623,0.04502061,67857.0,67856.0,0.3204775]
[1729835068344,0.0450202,67857.0,67856.0,0.3204775]
[1729835069091,0.000824,67857.0,67856.0,0.3204775]
[1729835071126,0.000824,67857.0,67856.0,0.3221255]
[1729835072076,0.000824,67857.0,67856.0,0.32212534]
[1729835082642,0.000824,67857.0,67856.0,0.317518]
[1729835108344,0.000824,67857.0,67856.0,0.240918]
[1729835108545,0.08924418,67857.0,67856.0,0.001648]
[1729835108747,0.08925878,67857.0,67856.0,0.001648]
[1729835108972,0.11136747,67857.0,67856.0,0.001648]
[1729835109315,0.25246659,67857.0,67856.0,0.001648]
[1729835109493,0.25246673,67857.0,67856.0,0.001648]
[1729835109716,0.16404835,67857.0,67856.0,0.001648]
[1729835110051,0.25246673,67857.0,67856.0,0.001648]
[1729835111344,0.16404835,67857.0,67856.0,0.001648]
[1729835112179,0.39983473,67857.0,67856.0,0.001648]
[1729835112506,0.31141635,67857.0,67856.0,0.001648]
[1729835113643,0.61242397,67857.0,67856.0,0.001648]
[1729835113848,0.59457233,67857.0,67856.0,0.001648]
[1729835114111,0.46192016,67857.0,67856.0,0.001648]
[1729835115065,0.59441321,67857.0,67856.0,0.001648]
[1729835115279,0.59636012,67857.0,67856.0,0.001648]
[1729835115724,0.46392016,67857.0,67856.0,0.001648]
[1729835115938,0.77983371,67857.0,67856.0,0.001648]
[1729835116158,0.147399,67843.0,67828.0,0.0965]
[1729835116368,0.56513088,67843.0,67828.0,0.0965]
[1729835116797,0.147414,67836.0,67828.0,0.0965]
[1729835117010,0.25141772,67836.0,67828.0,0.0965]
[1729835117432,0.147436,67826.0,67825.0,0.001648]
[1729835117644,0.147434,67827.0,67825.0,0.001648]
[1729835117847,0.04408948,67834.0,67825.0,0.001648]
[1729835117848,0.10400372,67832.0,67825.0,0.001648]
[1729835118073,0.147431,67828.0,67825.0,0.001648]
[1729835118280,0.10400372,67829.0,67825.0,0.001648]
[1729835118488,0.147436,67826.0,67825.0,0.001648]
[1729835118695,0.147432,67828.0,67825.0,0.001648]
[1729835118932,0.10400372,67829.0,67825.0,0.001648]
[1729835119176,0.147433,67828.0,67825.0,0.001648]
[1729835119389,0.147436,67826.0,67825.0,0.001648]
[1729835119594,0.25143972,67826.0,67825.0,0.001648]
[1729835123000,0.10400372,67826.0,67825.0,0.001648]
[1729835123263,0.147432,67828.0,67825.0,0.001648]
[1729835123476,0.147427,67831.0,67825.0,0.094548]
[1729835123683,0.147428,67830.0,67825.0,0.094548]
[1729835124765,0.10400372,67829.0,67825.0,0.094548]
[1729835125356,0.25143372,67829.0,67825.0,0.094548]
[1729835126654,0.10400372,67829.0,67825.0,0.094548]
[1729835127971,0.25143372,67829.0,67825.0,0.094548]
[1729835128605,0.147436,67826.0,67825.0,0.094548]
[1729835128810,0.10400372,67826.0,67825.0,0.001648]
[1729835129474,0.25143972,67826.0,67825.0,0.001648]
[1729835130562,0.10400372,67826.0,67825.0,0.001648]
[1729835131006,0.25143972,67826.0,67825.0,0.001648]
[1729835131213,0.10400372,67826.0,67825.0,0.001648]
[1729835131413,0.25143972,67826.0,67825.0,0.001648]
[1729835131831,0.10400372,67826.0,67825.0,0.001648]
[1729835134034,0.10400372,67829.0,67825.0,0.001648]
[1729835134256,0.10400372,67829.0,67826.0,0.1752]
[1729835136293,0.147426,67831.0,67826.0,0.1752]
[1729835136739,0.147428,67830.0,67826.0,0.1752]
[1729835137885,0.10400372,67829.0,67826.0,0.1752]
[1729835139116,0.147433,67828.0,67826.0,0.1752]
[1729835139315,0.10400372,67829.0,67826.0,0.1752]
[1729835139530,0.25143372,67829.0,67826.0,0.1752]
[1729835139729,0.147432,67828.0,67826.0,0.176848]
[1729835139953,0.10400372,67829.0,67826.0,0.176848]
[1729835140964,0.25143372,67829.0,67826.0,0.176848]
[1729835141169,0.10400372,67829.0,67826.0,0.176848]
[1729835141374,0.25143372,67829.0,67826.0,0.176848]
[1729835141508,0.10400372,67829.0,67826.0,0.176848]
[1729835141733,0.147432,67828.0,67826.0,0.176848]
[1729835142735,0.147433,67827.0,67826.0,0.176848]
[1729835143165,0.147431,67828.0,67826.0,0.176848]
[1729835143349,0.10400372,67829.0,67826.0,0.176848]
[1729835143526,0.25143472,67829.0,67826.0,0.176848]
[1729835143729,0.147432,67828.0,67826.0,0.176848]
[1729835143925,0.147433,67827.0,67826.0,0.176848]
[1729835144335,0.25143472,67829.0,67826.0,0.176848]
[1729835144529,0.294853,67831.0,67826.0,0.176848]
[1729835144530,0.147426,67831.0,67826.0,0.176848]
[1729835144978,0.10400372,67830.0,67826.0,0.176848]
[1729835147607,0.10400372,67830.0,67827.0,0.00460999]
[1729835147813,0.10400372,67830.0,67826.0,0.176848]
[1729835147965,0.25143172,67830.0,67827.0,0.00460999]
[1729835148176,0.25143172,67830.0,67826.0,0.176848]
[1729835148528,0.147431,67829.0,67827.0,0.00460999]
[1729835148729,0.10400372,67830.0,67826.0,0.176848]
[1729835148938,0.10400372,67830.0,67827.0,0.00460999]
[1729835149277,0.10400372,67830.0,67826.0,0.176848]
[1729835149475,0.10400372,67830.0,67827.0,0.00460999]
[1729835149762,0.147431,67828.0,67826.0,0.176848]
[1729835149951,0.147433,67827.0,67826.0,0.176848]
[1729835150152,0.10400372,67827.0,67826.0,0.176848]
[1729835151172,0.25143672,67827.0,67826.0,0.176848]
[1729835151313,0.10400372,67827.0,67826.0,0.176848]
[1729835152157,0.294843,67833.0,67826.0,0.176848]
[1729835152347,0.10400372,67827.0,67826.0,0.176848]
[1729835153407,0.30143072,67830.0,67826.0,0.176848]
[1729835153600,0.15400372,67830.0,67826.0,0.176848]
[1729835154141,0.15400372,67830.0,67827.0,0.0907]
[1729835155150,0.30143172,67830.0,67827.0,0.0907]
[1729835156346,0.15400372,67830.0,67827.0,0.0907]
[1729835156991,0.147431,67828.0,67827.0,0.0907]
[1729835157218,0.15400372,67830.0,67827.0,0.0907]
[1729835158401,0.30143072,67830.0,67827.0,0.0907]
[1729835158988,0.15400372,67830.0,67827.0,0.0907]
[1729835159189,0.24229317,67830.0,67827.0,0.0907]
[1729835159843,0.147431,67829.0,67827.0,0.0907]
[1729835160085,0.53714917,67830.0,67827.0,0.0907]
[1729835160086,0.24229317,67830.0,67827.0,0.0907]
[1729835160307,0.15400372,67830.0,67827.0,0.0907]
[1729835160730,0.30143072,67830.0,67827.0,0.0907]
[1729835160953,0.15400372,67830.0,67827.0,0.0907]
[1729835161624,0.17708257,67830.0,67827.0,0.0907]
[1729835162042,0.07307885,67830.0,67827.0,0.0907]
[1729835162910,0.147431,67829.0,67827.0,0.0907]
[1729835163113,0.07307885,67830.0,67827.0,0.0907]
[1729835163338,0.22050685,67830.0,67827.0,0.0907]
[1729835163565,0.07307885,67830.0,67827.0,0.0907]
[1729835164238,0.16332243,67829.0,67827.0,0.0907]
[1729835164477,0.16332243,67828.0,67827.0,0.0907]
[1729835164742,0.22050685,67830.0,67827.0,0.0907]
[1729835164743,0.16332243,67829.0,67827.0,0.0907]
[1729835164993,0.16332243,67828.0,67827.0,0.0907]
[1729835165201,0.16332243,67829.0,67827.0,0.0907]
[1729835165422,0.22050585,67830.0,67827.0,0.0907]
[1729835165650,0.16332486,67829.0,67827.0,0.0907]
[1729835165877,0.16332486,67828.0,67827.0,0.0907]
[1729835166126,0.16332486,67829.0,67827.0,0.0907]
[1729835166355,0.16332486,67828.0,67827.0,0.0907]
[1729835166792,0.16332486,67829.0,67827.0,0.0907]
[1729835167019,0.16332486,67828.0,67827.0,0.0907]
[1729835167488,0.16332486,67829.0,67827.0,0.0907]
[1729835167735,0.16332486,67828.0,67827.0,0.0907]
[1729835168382,0.16332486,67829.0,67827.0,0.0907]
[1729835168631,0.16332486,67828.0,67827.0,0.0907]
[1729835169109,0.16332486,67829.0,67827.0,0.0907]
[1729835169348,0.16332486,67828.0,67827.0,0.0907]
[1729835170552,0.31075586,67828.0,67827.0,0.0907]
[1729835170763,0.16332486,67828.0,67827.0,0.0907]
[1729835174081,0.16332486,67828.0,67827.0,0.092348]
[1729835175523,0.16332486,67829.0,67827.0,0.092348]
[1729835175724,0.16332486,67828.0,67827.0,0.092348]
[1729835176225,0.16332486,67829.0,67827.0,0.092348]
[1729835176447,0.16332486,67828.0,67827.0,0.092348]
[1729835176652,0.16332486,67829.0,67827.0,0.092348]
[1729835176856,0.16332486,67828.0,67827.0,0.092348]
[1729835177462,0.16332486,67828.0,67827.0,0.173948]
[1729835177920,0.16332486,67829.0,67827.0,0.081648]
[1729835178147,0.16332486,67828.0,67827.0,0.081648]
[1729835178560,0.05,67830.0,67827.0,0.081648]
[1729835178561,0.05,67830.0,67828.0,0.0923]
[1729835178780,0.16333274,67829.0,67828.0,0.0923]
[1729835180094,0.16333274,67829.0,67828.0,0.319731]
[1729835180334,0.05,67830.0,67828.0,0.319731]
[1729835180335,0.13849004,67830.0,67828.0,0.319731]
[1729835180582,0.06634366,67829.0,67828.0,0.319731]
[1729835180809,0.05,67830.0,67829.0,0.319729]
[1729835182136,0.09421595,67830.0,67829.0,0.319729]
[1729835182309,0.05,67830.0,67829.0,0.319729]
[1729835193047,0.05,67830.0,67829.0,0.1723]
[1729835193250,0.05,67830.0,67829.0,0.319729]
[1729835193473,0.05,67830.0,67829.0,0.1723]
[1729835193689,0.24164295,67830.0,67829.0,0.1723]
[1729835193895,0.05,67830.0,67827.0,0.001648]
[1729835194113,0.31767893,67829.0,67827.0,0.001648]
[1729835194346,0.21367621,67828.0,67827.0,0.001648]
[1729835195646,0.147431,67828.0,67827.0,0.001648]
[1729835195860,0.31046176,67828.0,67827.0,0.001648]
[1729835196085,0.147431,67828.0,67827.0,0.001648]
[1729835196517,0.31046215,67828.0,67827.0,0.001648]
[1729835199713,0.19900826,67828.0,67827.0,0.001648]
[1729835203961,0.13275821,67828.0,67827.0,0.001648]
[1729835204420,0.14743,67829.0,67827.0,0.001648]
[1729835204649,0.13849004,67830.0,67827.0,0.001648]
[1729835204650,0.3176855,67828.0,67827.0,0.001648]
[1729835205281,0.1702545,67828.0,67827.0,0.001648]
[1729835205723,0.3176855,67828.0,67827.0,0.001648]
[1729835206180,0.1702545,67828.0,67827.0,0.001648]
[1729835207255,0.3176855,67828.0,67827.0,0.001648]
[1729835209619,0.21368242,67828.0,67827.0,0.001648]
[1729835209816,0.39896165,67828.0,67827.0,0.001648]
[1729835214301,0.147431,67828.0,67827.0,0.001648]
[1729835214741,0.39880193,67828.0,67827.0,0.001648]
[1729835215863,0.31046843,67828.0,67827.0,0.001648]
[1729835217167,0.41447215,67828.0,67827.0,0.001648]
[1729835217989,0.31046843,67828.0,67827.0,0.001648]
[1729835218605,0.46097224,67828.0,67827.0,0.001648]
[1729835220117,0.46179724,67828.0,67827.0,0.001648]
[1729835220738,0.29875981,67828.0,67827.0,0.001648]
[1729835223866,0.30075981,67828.0,67827.0,0.001648]
[1729835224080,0.29875981,67828.0,67827.0,0.001648]
[1729835225321,0.29875981,67828.0,67827.0,0.180148]
[1729835225527,0.40276353,67828.0,67827.0,0.001648]
[1729835225724,0.56570651,67828.0,67827.0,0.001648]
[1729835226817,0.56770651,67828.0,67827.0,0.001648]
[1729835228224,0.69241329,67828.0,67827.0,0.001648]
[1729835228631,0.71549646,67828.0,67827.0,0.001648]
[1729835229289,0.71349646,67828.0,67827.0,0.001648]
[1729835229695,0.5258467,67828.0,67827.0,0.001648]
[1729835230090,0.5278467,67828.0,67827.0,0.001648]
[1729835230839,0.8230816,67828.0,67827.0,0.001648]
[1729835232089,0.79999843,67828.0,67827.0,0.001648]
[1729835234485,0.79800245,67828.0,67827.0,0.001648]
[1729835235512,0.80000245,67828.0,67827.0,0.001648]
[1729835236166,0.79800245,67828.0,67827.0,0.001648]
[1729835237420,0.80000245,67828.0,67827.0,0.001648]
[1729835238302,0.66763614,67828.0,67827.0,0.001648]
[1729835239665,0.66563614,67828.0,67827.0,0.001648]
[1729835241082,0.81613995,67828.0,67827.0,0.001648]
[1729835241555,0.66563614,67828.0,67827.0,0.001648]
[1729835242276,0.66763614,67828.0,67827.0,0.001648]
[1729835242487,0.66763614,67828.0,67827.0,0.182448]
[1729835242488,0.39875981,67828.0,67827.0,0.182448]
[1729835242715,0.50276353,67828.0,67827.0,0.182448]
[1729835242913,0.39875981,67828.0,67827.0,0.182448]
[1729835246791,0.5617168,67828.0,67827.0,0.182448]
[1729835247593,0.69415168,67828.0,67827.0,0.182448]
[1729835248449,0.73865437,67828.0,67827.0,0.182448]
[1729835250467,0.73872375,67828.0,67827.0,0.182448]
[1729835251508,0.60625776,67828.0,67827.0,0.182448]
[1729835257041,0.31125126,67828.0,67827.0,0.182448]
[1729835257256,0.16382026,67828.0,67827.0,0.182448]
[1729835262019,0.31125126,67828.0,67827.0,0.182448]
[1729835264463,0.46175507,67828.0,67827.0,0.182448]
[1729835266971,0.59432437,67828.0,67827.0,0.182448]
[1729835267248,0.46175507,67828.0,67827.0,0.182448]
[1729835268917,0.59433023,67828.0,67827.0,0.182448]
[1729835269159,0.46175507,67828.0,67827.0,0.182448]
[1729835269388,0.59433066,67828.0,67827.0,0.182448]
[1729835269616,0.46175507,67828.0,67827.0,0.182448]
[1729835271878,0.59433093,67828.0,67827.0,0.182448]
[1729835272999,0.59633093,67828.0,67827.0,0.182448]
[1729835273247,0.147433,67827.0,67826.0,0.001648]
[1729835273479,0.46093207,67827.0,67826.0,0.001648]
[1729835274842,0.53729572,67827.0,67826.0,0.001648]
[1729835275080,0.53529572,67827.0,67826.0,0.001648]
[1729835276761,0.66787158,67827.0,67826.0,0.001648]
[1729835276998,0.53529572,67827.0,67826.0,0.001648]
[1729835278890,0.53544841,67827.0,67826.0,0.001648]
[1729835280525,0.53744841,67827.0,67826.0,0.001648]
[1729835281151,0.53745164,67827.0,67826.0,0.001648]
[1729835281443,0.537452,67827.0,67826.0,0.001648]
[1729835281883,0.5819289,67827.0,67826.0,0.001648]
[1729835282107,0.149442,67823.0,67822.0,0.0814]
[1729835282305,0.29994581,67823.0,67822.0,0.0814]
[1729835282542,0.46309735,67823.0,67822.0,0.0814]
[1729835282761,0.46109735,67823.0,67822.0,0.0814]
[1729835287743,0.46109735,67823.0,67822.0,0.083048]
[1729835288582,0.46109735,67823.0,67822.0,0.180948]
[1729835288782,0.56510107,67823.0,67822.0,0.180948]
[1729835289346,0.31365535,67823.0,67822.0,0.180948]
[1729835289631,0.46109735,67823.0,67822.0,0.180948]
[1729835291766,0.46110086,67823.0,67822.0,0.180948]
[1729835295704,0.59369186,67823.0,67822.0,0.180948]
[1729835295940,0.46110086,67823.0,67822.0,0.180948]
[1729835298952,0.31059705,67823.0,67822.0,0.180948]
[1729835301480,0.31058159,67823.0,67822.0,0.180948]
[1729835304345,0.44316487,67823.0,67822.0,0.180948]
[1729835304546,0.31058159,67823.0,67822.0,0.180948]
[1729835306379,0.44316487,67823.0,67822.0,0.180948]
[1729835307008,0.31058159,67823.0,67822.0,0.180948]
[1729835307898,0.44316487,67823.0,67822.0,0.180948]
[1729835308541,0.54716859,67823.0,67822.0,0.180948]
[1729835309934,0.41458531,67823.0,67822.0,0.180948]
[1729835310336,0.54723418,67823.0,67822.0,0.180948]
[1729835310530,0.41458531,67823.0,67822.0,0.180948]
[1729835313314,0.40458531,67823.0,67822.0,0.180948]
[1729835334327,0.40540931,67823.0,67822.0,0.180948]
[1729835335292,0.40556448,67823.0,67822.0,0.180948]
[1729835340113,0.45009646,67823.0,67822.0,0.180948]
[1729835340627,0.45012873,67823.0,67822.0,0.180948]
[1729835342966,0.40559675,67823.0,67822.0,0.180948]
[1729835352892,0.24226972,67823.0,67822.0,0.180948]
[1729835353109,0.4056192,67823.0,67822.0,0.180948]
[1729835360801,0.45014617,67823.0,67822.0,0.180948]
[1729835361158,0.4056192,67823.0,67822.0,0.180948]
[1729835362577,0.40561819,67823.0,67822.0,0.180948]
[1729835362940,0.30161447,67823.0,67822.0,0.180948]
[1729835367401,0.30160286,67823.0,67822.0,0.180948]
[1729835377339,0.43433439,67823.0,67822.0,0.180948]
[1729835377953,0.30160286,67823.0,67822.0,0.180948]
[1729835381975,0.3015842,67823.0,67822.0,0.180948]
[1729835392974,0.40558792,67823.0,67822.0,0.180948]
[1729835393401,0.3015842,67823.0,67822.0,0.180948]
[1729835393728,0.40558792,67823.0,67822.0,0.180948]
[1729835396451,0.40559661,67823.0,67822.0,0.180948]
[1729835400776,0.40559665,67823.0,67822.0,0.180948]
[1729835406657,0.55610046,67823.0,67822.0,0.180948]
[1729835406867,0.74995829,67823.0,67822.0,0.001648]
[1729835407309,0.60063081,67823.0,67822.0,0.001648]
[1729835409165,0.72527934,67823.0,67822.0,0.001648]
[1729835409370,0.82928306,67823.0,67822.0,0.001648]
[1729835409594,0.82728306,67823.0,67822.0,0.001648]
[1729835410051,0.70463453,67823.0,67822.0,0.001648]
[1729835411122,0.60063081,67823.0,67822.0,0.001648]
[1729835411328,0.70463453,67823.0,67822.0,0.001648]
[1729835411750,0.60063081,67823.0,67822.0,0.001648]
[1729835411955,0.70463453,67823.0,67822.0,0.001648]
[1729835412774,0.60063081,67823.0,67822.0,0.001648]
[1729835413699,0.60063081,67823.0,67822.0,0.175948]
[1729835413908,0.60049111,67823.0,67822.0,0.175948]
[1729835414123,0.55596076,67823.0,67822.0,0.175948]
[1729835423886,0.45195704,67823.0,67822.0,0.175948]
[1729835424237,0.55596076,67823.0,67822.0,0.175948]
[1729835434231,0.60044724,67823.0,67822.0,0.175948]
[1729835436018,0.55596076,67823.0,67822.0,0.175948]
[1729835436687,0.60045068,67823.0,67822.0,0.175948]
[1729835436839,0.55596076,67823.0,67822.0,0.175948]
[1729835437040,0.60045248,67823.0,67822.0,0.175948]
[1729835437243,0.55596076,67823.0,67822.0,0.175948]
[1729835437933,0.60045514,67823.0,67822.0,0.175948]
[1729835439009,0.60045514,67823.0,67815.0,0.001648]
[1729835439010,0.147444,67822.0,67819.0,0.0954]
[1729835439207,0.147444,67822.0,67819.0,0.07237569]
[1729835439208,0.149449,67820.0,67819.0,0.07237569]
[1729835439460,0.56714376,67820.0,67819.0,0.07237569]
[1729835439746,0.002,67818.0,67815.0,0.001648]
[1729835440065,0.35546444,67816.0,67815.0,0.001648]
[1729835440240,0.66915548,67816.0,67815.0,0.001648]
[1729835440380,0.80178996,67816.0,67815.0,0.001648]
[1729835440587,0.80178788,67816.0,67815.0,0.001648]
[1729835441208,0.66915548,67816.0,67815.0,0.001648]
[1729835442653,0.50596825,67816.0,67815.0,0.001648]
[1729835442900,0.66916282,67816.0,67815.0,0.001648]
[1729835445221,0.66916282,67816.0,67802.0,0.005]
[1729835445222,0.0948,67807.0,67790.0,0.000824]
[1729835445455,0.33989747,67800.0,67795.0,0.22040187]
[1729835445694,0.41469029,67800.0,67795.0,0.22040187]
[1729835445928,0.50507132,67800.0,67795.0,0.22040187]
[1729835446160,0.50507132,67800.0,67790.0,0.000824]
[1729835446634,0.5671941,67800.0,67790.0,0.000824]
[1729835447331,0.25151972,67789.0,67788.0,0.00024]
[1729835447561,0.41462625,67789.0,67788.0,0.00024]
[1729835447767,0.25151972,67789.0,67788.0,0.00024]